Cogmind - Beta 12 @@@ ROGUE MODE // 2023.05.16 @ 10:40:02 Player: Mr Goldstein Result: Destroyed by Y-54 Guardian with Flak Gun Performance ------------- Evolutions (4) 2000 Regions Visited (8) 1600 Robots Destroyed (3) 15 Value Destroyed (30) 30 Prototype IDs (0) 0 Alien Tech Used (0) 0 Bonus (470) 470 TOTAL SCORE: 4115 Bonus ------- Pacifist 470 Cogmind --------- Core Integrity 0/850 Matter 300/300 Energy 99/100 System Corruption 2% Temperature Cool (12) Movement Core (50) Location -6/Extension Parts ------- > --- POWER (1) -------- (None) > --- PROPULSION (6) --- (None) > --- UTILITY (6) ------ Utility Shielding > --- WEAPON (2) ------- (None) > --- INVENTORY (5) ---- Stasis Canceller Peak State ------------ > --- POWER ------------ Deuterium Engine > --- PROPULSION ------- VTOL Module VTOL Module Xenon Bombardment Thruster Nuclear Pulse Thruster > --- UTILITY ---------- Utility Shielding > --- WEAPON ----------- (None) > --- INVENTORY -------- (None) [Rating: 17] Favorites ----------- Power Deuterium Engine Engine Deuterium Engine Propulsion VTOL Module Flight Unit VTOL Module Utility Utility Shielding Device Stasis Canceller Processor Advanced Terrain Scan Processor Protection Utility Shielding Weapon Grenade Launcher Launcher Grenade Launcher Build | -11 -10 -9 -8 -7 -6 -6 -6 -6 ------- Run | Jun Mat Mat Mat Fac Fac Was Fac Ext Slots Evolved 8 | . . 2 2 2 2 . . . Power . | . . . . . . . . . Propulsion 4 | . . 1 1 1 1 . . . Utility 4 | . . 1 1 1 1 . . . Weapon . | . . . . . . . . . Parts Attached 23 | . . 3 3 7 1 . 6 3 Power 2 | . . . . 1 . . 1 . Engine 2 | . . . . 1 . . 1 . Core . | . . . . . . . . . Reactor . | . . . . . . . . . Propulsion 16 | . . 2 3 6 1 . 4 . Treads . | . . . . . . . . . Leg . | . . . . . . . . . Wheel . | . . . . . . . . . Hover . | . . . . . . . . . Flight 16 | . . 2 3 6 1 . 4 . Utility 4 | . . . . . . . 1 3 Device 2 | . . . . . . . . 2 Storage . | . . . . . . . . . Processor 1 | . . . . . . . . 1 Hackware . | . . . . . . . . . Protection 1 | . . . . . . . 1 . Artifact . | . . . . . . . . . Weapon 1 | . . 1 . . . . . . Energy Gun . | . . . . . . . . . Energy Cannon . | . . . . . . . . . Ballistic Gun . | . . . . . . . . . Ballistic Cannon . | . . . . . . . . . Launcher 1 | . . 1 . . . . . . Special Weapon . | . . . . . . . . . Impact Weapon . | . . . . . . . . . Slashing Weapon . | . . . . . . . . . Piercing Weapon . | . . . . . . . . . Special Melee Weapon . | . . . . . . . . . Unidentified Prototypes . | . . . . . . . . . Parts Lost 16 | . . 1 2 2 . . 5 6 Power 1 | . . . . . . . . 1 Propulsion 13 | . . 1 1 2 . . 5 4 Utility 1 | . . . . . . . . 1 Weapon 1 | . . . 1 . . . . . Highest Loss Streak 5 | . . 1 2 2 . . 4 5 To Critical Strikes . | . . . . . . . . . Average Slot Usage (%) 24 | . . 14 18 37 40 40 40 14 Engine 2 | . . . . 1 6 6 6 . Flight 17 | . . 4 12 35 33 33 29 5 Protection 2 | . . . . . . . 4 6 Launcher 2 | . . 9 6 . . . . . Naked Turns 57 | . 47 10 . . . . . . Heaviest Build 10 | . . 3 3 9 9 9 10 10 Greatest Support 26 | 3 3 4 12 20 26 20 20 20 Greatest Overweight (x) 1 | . . . . . . . . 1 Average Overweight (x) . | . . . . . . . . . Largest Inventory Capacity 5 | 5 5 5 5 5 5 5 5 5 Average Capacity 5 | 5 5 5 5 5 5 5 5 5 Most Carried 5 | . 5 5 5 4 4 4 4 1 Average Carried 2 | . 1 4 5 2 2 4 2 . Final Capacity 5 | 5 5 5 5 5 5 5 5 5 Final Carried 5 | . 5 5 5 1 4 4 . 1 Class Distribution -------------------- 66% | Mutant 33% | Sprinter Dominant Class ---------------- Mutant | -10/Materials Mutant | -9/Materials Mutant | -8/Materials Mutant | -7/Factory Sprinter | -6/Factory Sprinter | -6/Waste Sprinter | -6/Factory Mutant | -6/Extension Resources | -11 -10 -9 -8 -7 -6 -6 -6 -6 ----------- Run | Jun Mat Mat Mat Fac Fac Was Fac Ext Matter Collected 366 | 183 . . . 118 . . 65 . Remotely . | . . . . . . . . . Salvage Created 20 | . . . 20 . . . . . Parts 7 | . . . 7 . . . . . Haulers Intercepted . | . . . . . . . . . Recyclers Shooed . | . . . . . . . . . Parts Field Recycled . | . . . . . . . . . Retrieved Matter . | . . . . . . . . . Parts Self-Destructed . | . . . . . . . . . Prevented . | . . . . . . . . . Kills | -11 -10 -9 -8 -7 -6 -6 -6 -6 ------- Run | Jun Mat Mat Mat Fac Fac Was Fac Ext Combat Hostiles Destroyed 3 | . . . 3 . . . . . AOE 3 | . . . 3 . . . . . Classes Destroyed 1 | . . . 1 . . . . . Swarmer 3 | . . . 3 . . . . . Best Kill Streak 3 | . . . 3 . . . . . Combat Bots Only 3 | . . . 3 . . . . . Max Kills in Single Turn 2 | . . . 2 . . . . . Gunslinging . | . . . . . . . . . Exploded 2 | . . . 2 . . . . . Melee . | . . . . . . . . . Uniques/NPCs Destroyed . | . . . . . . . . . Combat | -11 -10 -9 -8 -7 -6 -6 -6 -6 -------- Run | Jun Mat Mat Mat Fac Fac Was Fac Ext Damage Taken 1644 | . . 235 79 187 18 . 308 817 Core 1135 | . . 149 40 95 . . 170 681 Absorbed by Shields 44 | . . . . . . . . 44 Core Remaining (%) 88 | 100 100 62 92 86 . . . . Volleys Fired 3 | . . . 3 . . . . . Largest 1 | . . . 1 . . . . . Hottest 30 | . . . 30 . . . . . Shots Fired 3 | . . . 3 . . . . . Gun . | . . . . . . . . . Cannon . | . . . . . . . . . Launcher 3 | . . . 3 . . . . . Special . | . . . . . . . . . Kinetic . | . . . . . . . . . Thermal . | . . . . . . . . . Explosive 3 | . . . 3 . . . . . Electromagnetic . | . . . . . . . . . Robot Hit Streak . | . . . . . . . . . Robot Miss Streak . | . . . . . . . . . Penetration Max . | . . . . . . . . . Secondary Targets . | . . . . . . . . . Shots Hit Robots . | . . . . . . . . . Core Hits 5 | . . . 3 . . . . 2 Critical Kills . | . . . . . . . . . Critical Parts Destroyed . | . . . . . . . . . Critical Strikes . | . . . . . . . . . Melee Attacks . | . . . . . . . . . Impact . | . . . . . . . . . Slashing . | . . . . . . . . . Piercing . | . . . . . . . . . Sneak Attacks . | . . . . . . . . . Combat Hostiles . | . . . . . . . . . Follow-up Attacks . | . . . . . . . . . Damage Inflicted 245 | . . 8 190 . . . . 47 Guns . | . . . . . . . . . Cannons . | . . . . . . . . . Explosions 190 | . . . 190 . . . . . Melee . | . . . . . . . . . Ramming 55 | . . 8 . . . . . 47 Kinetic . | . . . . . . . . . Thermal . | . . . . . . . . . Explosive 190 | . . . 190 . . . . . Electromagnetic . | . . . . . . . . . Impact . | . . . . . . . . . Slashing . | . . . . . . . . . Piercing . | . . . . . . . . . Highest Corruption 2 | . . . . . . . 1 2 Average Corruption 1 | . . . . . . . 1 1 Corruption Purged . | . . . . . . . . . Corruption Blocked . | . . . . . . . . . Effects 1 | . . . . . . . . 1 Message Errors 1 | . . . . . . . . 1 Overload Shots . | . . . . . . . . . Overflow Damage . | . . . . . . . . . Projectiles . | . . . . . . . . . Explosions . | . . . . . . . . . Melee . | . . . . . . . . . Knockbacks 6 | . . 1 . . . . . 5 Impact 6 | . . 1 . . . . . 5 Kinetic . | . . . . . . . . . Secondary . | . . . . . . . . . Self-Inflicted Damage 25 | . . 4 . . . . . 21 Shots . | . . . . . . . . . Rammed 16 | . . 1 . . . . . 15 Targets Rammed 16 | . . 1 . . . . . 15 Kicked . | . . . . . . . . . Crushed . | . . . . . . . . . Highest Temperature 3 | . . . . . 3 . 2 . Average Temperature 2 | . . . . . 3 . 2 . Received Heat Transfer 420 | . . 96 . 63 9 . 6 246 Siege Activations . | . . . . . . . . . Robots Corrupted . | . . . . . . . . . Combat Hostiles . | . . . . . . . . . Parts Fried . | . . . . . . . . . Impact Corruptions . | . . . . . . . . . Robots Melted . | . . . . . . . . . Combat Hostiles . | . . . . . . . . . Parts Melted . | . . . . . . . . . Heat Transferred . | . . . . . . . . . Parts Sabotaged . | . . . . . . . . . Parts Stolen . | . . . . . . . . . Parts Stripped . | . . . . . . . . . Power Chain Reactions . | . . . . . . . . . Missiles Intercepted . | . . . . . . . . . Alert | -11 -10 -9 -8 -7 -6 -6 -6 -6 ------- Run | Jun Mat Mat Mat Fac Fac Was Fac Ext Peak Influence 191 | . 15 175 183 158 77 41 83 191 Initial 77 | . . 5 73 73 77 26 28 40 Average 70 | . 8 45 137 96 77 28 45 93 Maximum Alert Level . | . . . . . . . . . Low Security (%) 100 | 100 100 100 100 100 100 100 100 100 Level 1 . | . . . . . . . . . Level 2 . | . . . . . . . . . Level 3 . | . . . . . . . . . Level 4 . | . . . . . . . . . Level 5 . | . . . . . . . . . High Security . | . . . . . . . . . Max Security . | . . . . . . . . . Squads Dispatched 10 | . 1 2 . 2 . . 1 4 Investigation 6 | . . 1 . 2 . . . 3 Extermination . | . . . . . . . . . Reinforcement 4 | . 1 1 . . . . 1 1 Assault . | . . . . . . . . . Garrison . | . . . . . . . . . Intercept . | . . . . . . . . . Searches Triggered . | . . . . . . . . . Construction Impeded . | . . . . . . . . . Haulers Reinforced . | . . . . . . . . . Active Scanning Responses . | . . . . . . . . . Cargo Convoy Interrupts . | . . . . . . . . . Stealth | -11 -10 -9 -8 -7 -6 -6 -6 -6 --------- Run | Jun Mat Mat Mat Fac Fac Was Fac Ext Distress Signals 1 | . . . . . . . . 1 Communications Jammed . | . . . . . . . . . Distress Signals . | . . . . . . . . . Times Spotted 71 | . 2 20 6 8 8 1 9 17 Peak Tracking Total 14 | . 2 14 7 8 8 1 6 8 Tactical Retreats 11 | . . 3 . 1 . . 3 4 Traps | -11 -10 -9 -8 -7 -6 -6 -6 -6 ------- Run | Jun Mat Mat Mat Fac Fac Was Fac Ext Traps Triggered 10 | . . 1 . . 1 . 2 6 Indirectly . | . . . . . . . . . Trap Hack Attempts . | . . . . . . . . . Triggered . | . . . . . . . . . Disarmed . | . . . . . . . . . Reprogrammed . | . . . . . . . . . Reused . | . . . . . . . . . Traps Extracted . | . . . . . . . . . Installed . | . . . . . . . . . Triggered . | . . . . . . . . . Machines | -11 -10 -9 -8 -7 -6 -6 -6 -6 ---------- Run | Jun Mat Mat Mat Fac Fac Was Fac Ext Machines Disabled . | . . . . . . . . . Max in Single Turn . | . . . . . . . . . Machines Repaired . | . . . . . . . . . Machines Sabotaged . | . . . . . . . . . Overloaded Fab Kills . | . . . . . . . . . Hacking | -11 -10 -9 -8 -7 -6 -6 -6 -6 --------- Run | Jun Mat Mat Mat Fac Fac Was Fac Ext Machines Accessed 8 | . . . . 3 . . . 5 Terminals 7 | . . . . 2 . . . 5 Fabricators 1 | . . . . 1 . . . . Repair Stations . | . . . . . . . . . Recycling Units . | . . . . . . . . . Scanalyzers . | . . . . . . . . . Garrison Access . | . . . . . . . . . Total Hacks 18 | . . . . 6 . . . 12 Successful 3 | . . . . . . . . 3 Failed 15 | . . . . 6 . . . 9 Catastrophic 6 | . . . . 4 . . . 2 Database Lockouts . | . . . . . . . . . Manual . | . . . . . . . . . Terminals 17 | . . . . 5 . . . 12 Fabricators 1 | . . . . 1 . . . . Repair Stations . | . . . . . . . . . Recycling Units . | . . . . . . . . . Scanalyzers . | . . . . . . . . . Garrison Access . | . . . . . . . . . Terminal Hacks 3 | . . . . . . . . 3 Open Door 3 | . . . . . . . . 3 Fabricator Hacks . | . . . . . . . . . Repair Station Hacks . | . . . . . . . . . Recycling Unit Hacks . | . . . . . . . . . Scanalyzer . | . . . . . . . . . Garrison Access Hacks . | . . . . . . . . . Unauthorized Hacks . | . . . . . . . . . Terminals . | . . . . . . . . . Fabricators . | . . . . . . . . . Repair Stations . | . . . . . . . . . Recycling Units . | . . . . . . . . . Scanalyzers . | . . . . . . . . . Garrison Access . | . . . . . . . . . Data Cores Recovered . | . . . . . . . . . Used . | . . . . . . . . . Hacking Detections 7 | . . . . 3 . . . 4 Full Trace Events 4 | . . . . 2 . . . 2 Feedback Events . | . . . . . . . . . Feedback Blocked . | . . . . . . . . . Robot Schematics Acquired . | . . . . . . . . . Robots Built . | . . . . . . . . . Authchips . | . . . . . . . . . Time . | . . . . . . . . . Total Robot Build Rating . | . . . . . . . . . Part Schematics Acquired . | . . . . . . . . . Parts Built . | . . . . . . . . . Authchips . | . . . . . . . . . Time . | . . . . . . . . . Total Part Build Rating . | . . . . . . . . . Parts Repaired . | . . . . . . . . . Time . | . . . . . . . . . Parts Recycled . | . . . . . . . . . Recycled Matter . | . . . . . . . . . Retrieved Matter . | . . . . . . . . . Retrieved Components . | . . . . . . . . . Parts Scanalyzed . | . . . . . . . . . Part Schematics Acquired . | . . . . . . . . . Parts Damaged . | . . . . . . . . . Bothacking | -11 -10 -9 -8 -7 -6 -6 -6 -6 ------------ Run | Jun Mat Mat Mat Fac Fac Was Fac Ext Used RIF Installer . | . . . . . . . . . Robots Hacked . | . . . . . . . . . Non-combat . | . . . . . . . . . Combat . | . . . . . . . . . Robot Hacks Applied . | . . . . . . . . . Relay Couplers Released . | . . . . . . . . . Fabnet Peak Effective % . | . . . . . . . . . Robots Rewired . | . . . . . . . . . Allies Hacked . | . . . . . . . . . Hacks Repelled . | . . . . . . . . . Allies | -11 -10 -9 -8 -7 -6 -6 -6 -6 -------- Run | Jun Mat Mat Mat Fac Fac Was Fac Ext Total Allies 1 | . . . . . . . . 1 Largest Group 1 | . . . . . . . . 1 Highest-Rated Group 20 | . . . . . . . . 20 Highest-Rated Ally 20 | . . . . . . . . 20 Total Orders . | . . . . . . . . . Ally Attacks 3 | . . . . . . . . 3 Total Damage 30 | . . . . . . . . 30 Kills . | . . . . . . . . . Allies Corrupted 1 | . . . . . . . . 1 Allies Melted . | . . . . . . . . . Intel | -11 -10 -9 -8 -7 -6 -6 -6 -6 ------- Run | Jun Mat Mat Mat Fac Fac Was Fac Ext Robot Analysis Total . | . . . . . . . . . Derelict Logs Recovered . | . . . . . . . . . Drone Launches . | . . . . . . . . . Drone Recoveries . | . . . . . . . . . Exploration | -11 -10 -9 -8 -7 -6 -6 -6 -6 ------------- Run | Jun Mat Mat Mat Fac Fac Was Fac Ext Turns Passed 619 | 11 47 88 55 99 28 16 130 145 Spaces Moved 1511 | 22 84 200 123 250 95 61 441 235 Core 309 | 22 84 77 . . . . . 126 Treads . | . . . . . . . . . Legs . | . . . . . . . . . Wheels . | . . . . . . . . . Hover . | . . . . . . . . . Flight 1202 | . . 123 123 250 95 61 441 109 Fastest Speed 22 | 50 50 35 32 25 22 25 25 28 Average Speed 34 | 50 50 40 34 34 24 25 26 42 Slowest Speed 100 | 50 50 50 37 37 25 25 30 100 Overloaded Moves . | . . . . . . . . . Propulsion Burnouts . | . . . . . . . . . Robots Hopped 19 | . . 1 2 3 2 . 9 2 Cave-ins Triggered . | . . . . . . . . . Exploration Rate (%) 24 | 3 18 33 21 12 5 62 16 48 Regions Visited 8 Branch Regions 1 Pre-discovered Areas . | . . . . . . . . . Known Exits Taken . | . . . . . . . . . Unknown Exits Taken 6 | 1 1 1 1 1 . . 1 . Scrap Searched . | . . . . . . . . . Spaces Dug . | . . . . . . . . . Terrain Destroyed 23 | . . . 23 . . . . . Melee . | . . . . . . . . . Projectile . | . . . . . . . . . AOE 23 | . . . 23 . . . . . Terrain Rammed . | . . . . . . . . . Walls Destroyed . | . . . . . . . . . Machines Disabled . | . . . . . . . . . Actions | -11 -10 -9 -8 -7 -6 -6 -6 -6 --------- Run | Jun Mat Mat Mat Fac Fac Was Fac Ext Total 1578 | 21 88 203 127 258 97 60 445 279 Wait 6 | . . . 1 5 . . . . Move 1467 | 21 83 197 118 244 91 60 422 231 Hop 18 | . . 1 2 2 2 . 9 2 Pick Up 9 | . 5 1 . . 2 . . 1 Fast Attach 10 | . . 2 3 1 1 . 2 1 Attach 11 | . . 1 . 4 . . 4 2 Detach 3 | . . . . . 1 . . 2 Swap 2 | . . . . 2 . . . . Drop . | . . . . . . . . . Fire 3 | . . . 3 . . . . . Melee . | . . . . . . . . . Ram 16 | . . 1 . . . . . 15 Kick . | . . . . . . . . . Crush . | . . . . . . . . . Escape Stasis 33 | . . . . . . . 8 25 Rewire . | . . . . . . . . . Trap . | . . . . . . . . . Miscellaneous . | . . . . . . . . . Route ------- -11/Junkyard -10/Materials -9/Materials (discovered 2 exits: [*Mat] / [*Min]) -8/Materials (discovered 2 exits: *Fac / [*Sto]) -7/Factory -6/Factory -6/Waste -6/Factory -6/Extension History --------- Turn | Location | Event 3 | -11/Junkyard | Discovered new exit (range 16) 12 | -11/Junkyard | Entered Materials 44 | -10/Materials | Discovered new exit (range 15) 59 | -10/Materials | Entered another Materials area 59 | -9/Materials | Evolved 2 slots: Propulsion x1, Utility x1 92 | -9/Materials | Discovered new exit (range 11) 141 | -9/Materials | Discovered new exit (range 15) 147 | -9/Materials | Entered another Materials area 147 | -8/Materials | Evolved 2 slots: Propulsion x1, Utility x1 150 | -8/Materials | Discovered new exit (range 16) 171 | -8/Materials | Discovered new exit (range 15) 202 | -8/Materials | Entered Factory 202 | -7/Factory | Evolved 2 slots: Propulsion x1, Utility x1 297 | -7/Factory | Discovered new exit (range 16) 301 | -7/Factory | Entered another Factory area 301 | -6/Factory | Evolved 2 slots: Propulsion x1, Utility x1 329 | -6/Factory | Sucked down chute 329 | -6/Factory | Entered Waste 335 | -6/Waste | Spotted C-40 Crusher 340 | -6/Waste | Spotted C-40 Crusher 340 | -6/Waste | Discovered new exit (range 16) 341 | -6/Waste | Spotted C-40 Crusher 345 | -6/Waste | Entered Factory 466 | -6/Factory | Lost 4 parts (4n) 471 | -6/Factory | Discovered new exit (range 16) 475 | -6/Factory | Entered Extension 486 | -6/Extension | Rescued a captive Derelict 551 | -6/Extension | Lost 5 parts (1p4n) 556 | -6/Extension | Rescued a captive Derelict 560 | -6/Extension | Spotted B-75 Beast 564 | -6/Extension | Spotted B-75 Beast 566 | -6/Extension | Core integrity fell below 50% 572 | -6/Extension | Core integrity fell below 20% 602 | -6/Extension | Rescued a captive Derelict 616 | -6/Extension | Rescued a captive Derelict 620 | -6/Extension | Destroyed by Y-54 Guardian with Flak Gun Last Messages --------------- 00586_ Field strength at 40. 00587_ Field strength at 34. 00588_ Field strength at 28. 00589_ Field strength at 22. 00590_ Field strength at 16. 00591_ &YIZZL6=WTI9HIMYHASR|LYUNFKZA/WGOW6LPG 00591_ Field strength at 10. 00592_ Field strength at 4. 00593_ Stasis field depleted. 00593_ Triggered Stasis Trap. 00593_ A bubble of rippling energy engulfs the area. 00593_ Field strength at 94. 00594_ Stasis field depleted. 00597_ Connecting with Door Terminal... 00597_ ALERT: Suspicious activity at Terminal E004. Dispatching Investigation squad. 00601_ Connecting with Door Terminal... >>Open(Door) Sealed Heavy Doors opened. 00608_ Slammed into U-05 Engineer. Map ----- +----------------------------------------------------+ | | | | | | | | | | | | | | | | | | | | | ?????????????????????????????????????????????????? | | ?????????????????????????????????????????????????? | | ?????????????????????????????????????????????????? | | ?????????????????????????????????????????????????? | | ?????????????????????????????????????????????????? | | ?????????????????????????????????????????????????? | | ?????????????????????????????????????????????????? | | ?????????????????????????????????????????????????? | | ?????????????????????????????????????????????????? | | ?????????????????????????????????????????????????? | | ?????????????????????????????????????????????????? | | ?????????????????????????????????????????????????? | | ?????????????????????????????????????????????????? | | ????????????????????########?????????????????????? | | ????????????????????# = #?????????????????????? | | ????????????????????# @u#?????????????????????? | | ????????????????????# gb +?????????????????????? | | ????????????????????# Ylg #?????????????????????? | | ##################### #?????????????????????? | | % % + Y #?????????????????????? | | ############################?????????????????????? | | ?????????????????????????????????????????????????? | | ?????????????????????????????????????????????????? | | ?????????????????????????????????????????????????? | | ?????????????????????????????????????????????????? | | ?????????????????????????????????????????????????? | | ?????????????????????????????????????????????????? | | ?????????????????????????????????????????????????? | | ?????????????????????????????????????????????????? | | ?????????????????????????????????????????????????? | | ?????????????????????????????????????????????????? | | ?????????????????????????????????????????????????? | | ?????????????????????????????????????????????????? | | ?????????????????????????????????????????????????? | | ?????????????????????????????????????????????????? | | ?????????????????????????????????????????????????? | | ?????????????????????????????????????????????????? | | ?????????????????????????????????????????????????? | | ?????????????????????????????????????????????????? | | ?????????????????????????????????????????????????? | +----------------------------------------------------+ Best States ------------- Heat Dissipation 37 Energy Generation 14 Energy Capacity 275 Matter Stores 300 Matter Capacity 300 Sight Range 16 Terrain Scan Density 210 Utility Shielding 33 Evasion (%) 65 Item Schematics ----------------- None Robot Schematics ------------------ None Fabricated ------------ Nothing Alien Tech Used ----------------- None Achievements -------------- None Challenges ------------ None Game ------ Seed SystemLayeredJammer Manual? 0 Play Time 00:11:45 Cumulative 218.3 hours Start 2023.05.16 @ 10:30:43 End 2023.05.16 @ 10:40:02 Sessions 1 Manual Loads 0 Difficulty Rogue Special Mode None Game No. 665 Rogue 665 Adventurer 0 Explorer 0 Win Type - Total 9 Types 7/0/1/1/0/0/0/0/0 Lore% 82 Gallery% 80 Achievement% 71 Wizard Run 0 Options --------- ASCII 0 Keyboard 0 Movement Numpad Keybinds 0 Fullscreen 1 Font 16/SmallcapsGlow Map View 75x55 Tactical HUD 1 Map Filters NONE Filters NONE Steam 1 RUN: 5f17f418-ec32-4da8-938f-e1be08402e85